[Event "Late-Titled-Tuesday-Blitz-May-14-2024"]
[Site "Chess.com"]
[Date "2024.05.14"]
[Round "6"]
[White "lucasran"]
[Black "bubeliang"]
[Result "1/2-1/2"]
[WhiteElo "2578"]
[BlackElo "2805"]
[TimeControl "180+1"]
[EndTime "15:08:03 PDT"]
[Termination "Game drawn by agreement"]

1. c4 {[%clk 0:03:00]} 1... e6 {[%clk 0:02:59.7]} 2. g3 {[%clk 0:02:59.3]} 2...
d5 {[%clk 0:03:00.6]} 3. Bg2 {[%clk 0:03:00.1]} 3... Nf6 {[%clk 0:03:00.8]} 4.
Nf3 {[%clk 0:03:00.6]} 4... dxc4 {[%clk 0:02:58.7]} 5. Qa4+ {[%clk 0:03:00.6]}
5... Nbd7 {[%clk 0:02:58.7]} 6. Qxc4 {[%clk 0:03:00.3]} 6... Bd6 {[%clk
0:02:58.5]} 7. O-O {[%clk 0:03:00.4]} 7... O-O {[%clk 0:02:58.2]} 8. d3 {[%clk
0:02:58.3]} 8... a6 {[%clk 0:02:56.6]} 9. Qb3 {[%clk 0:02:58.2]} 9... Rb8 {[%clk
0:02:55.7]} 10. a4 {[%clk 0:02:54.5]} 10... h6 {[%clk 0:02:51.1]} 11. Na3 {[%clk
0:02:51.6]} 11... b6 {[%clk 0:02:49.5]} 12. Nc4 {[%clk 0:02:50.2]} 12... Bb7
{[%clk 0:02:48]} 13. Nxd6 {[%clk 0:02:49.1]} 13... cxd6 {[%clk 0:02:46]} 14. Qa3
{[%clk 0:02:49.3]} 14... Qe7 {[%clk 0:02:43.7]} 15. Bd2 {[%clk 0:02:47.2]} 15...
Rfc8 {[%clk 0:02:42]} 16. Rfc1 {[%clk 0:02:47.2]} 16... e5 {[%clk 0:02:35]} 17.
Bb4 {[%clk 0:02:40.7]} 17... Nc5 {[%clk 0:02:33]} 18. Bh3 {[%clk 0:02:19.2]}
18... Rc7 {[%clk 0:02:30.9]} 19. a5 {[%clk 0:02:18.9]} 19... Bxf3 {[%clk
0:02:29.7]} 20. exf3 {[%clk 0:02:19.1]} 20... Rcb7 {[%clk 0:02:29.3]} 21. axb6
{[%clk 0:02:15.2]} 21... Rxb6 {[%clk 0:02:28.2]} 22. Bxc5 {[%clk 0:02:15.5]}
22... dxc5 {[%clk 0:02:27.9]} 23. Qxc5 {[%clk 0:02:14.9]} 23... Qxc5 {[%clk
0:02:17.5]} 24. Rxc5 {[%clk 0:02:15.8]} 24... Rxb2 {[%clk 0:02:18]} 25. Rxe5
{[%clk 0:02:00.5]} 25... R2b6 {[%clk 0:02:16.9]} 26. Rea5 {[%clk 0:01:59.9]}
26... Rd6 {[%clk 0:02:13.2]} 27. Bf1 {[%clk 0:01:55.7]} 27... Rbb6 {[%clk
0:02:12.4]} 28. R1a4 {[%clk 0:01:49.4]} 28... Nd5 {[%clk 0:02:00.3]} 29. d4
{[%clk 0:01:49.6]} 29... Nc3 {[%clk 0:01:59.4]} 30. Ra3 {[%clk 0:01:49.1]} 30...
Nb5 {[%clk 0:01:48.5]} 31. Bxb5 {[%clk 0:01:28]} 31... axb5 {[%clk 0:01:49.4]}
32. Rb3 {[%clk 0:01:27.1]} 32... Rd5 {[%clk 0:01:46.8]} 33. Rb4 {[%clk
0:01:24.8]} 33... g6 {[%clk 0:01:46.4]} 34. Ra3 {[%clk 0:01:14]} 34... Rc6
{[%clk 0:01:43.1]} 35. Rab3 {[%clk 0:01:13.8]} 35... Kg7 {[%clk 0:01:39.7]} 36.
Rxb5 {[%clk 0:01:13.3]} 36... Rxd4 {[%clk 0:01:39.8]} 37. f4 {[%clk 0:01:04.4]}
37... Rd2 {[%clk 0:01:37.1]} 38. Rf3 {[%clk 0:01:00.3]} 38... Rf6 {[%clk
0:01:13.3]} 39. Kg2 {[%clk 0:00:58.8]} 39... h5 {[%clk 0:01:13.1]} 40. h4 {[%clk
0:00:57.5]} 40... Rfd6 {[%clk 0:01:09.4]} 41. f5 {[%clk 0:00:56.9]} 41... Rf6
{[%clk 0:01:08.9]} 42. fxg6 {[%clk 0:00:46.2]} 42... Rxf3 {[%clk 0:01:08.5]} 43.
Kxf3 {[%clk 0:00:44.8]} 43... fxg6 {[%clk 0:01:08.6]} 44. Rb7+ {[%clk
0:00:45.2]} 44... Kh6 {[%clk 0:01:08.2]} 45. Rf7 {[%clk 0:00:42.5]} 45... Ra2
{[%clk 0:01:07.3]} 46. Re7 {[%clk 0:00:40.3]} 46... Ra4 {[%clk 0:01:06.6]} 47.
Kg2 {[%clk 0:00:39.6]} 47... Ra5 {[%clk 0:01:06.3]} 48. Rf7 {[%clk 0:00:36.1]}
48... Ra3 {[%clk 0:01:05.8]} 49. Kh3 {[%clk 0:00:35.7]} 49... Rb3 {[%clk
0:01:05.2]} 50. f3 {[%clk 0:00:35.9]} 50... Ra3 {[%clk 0:01:05.1]} 51. Kg2
{[%clk 0:00:32.7]} 51... Ra4 {[%clk 0:01:02.3]} 52. Kf2 {[%clk 0:00:31.9]} 52...
Ra3 {[%clk 0:01:01.8]} 53. g4 {[%clk 0:00:30.3]} 53... hxg4 {[%clk 0:01:01.6]}
54. fxg4 {[%clk 0:00:30.7]} 54... Rh3 {[%clk 0:00:59.9]} 55. Kg2 {[%clk
0:00:10.1]} 55... Rxh4 {[%clk 0:00:57.4]} 56. Kg3 {[%clk 0:00:10.1]} 56... Rh1
{[%clk 0:00:43.9]} 57. Rb7 {[%clk 0:00:08.9]} 57... Ra1 {[%clk 0:00:42.9]} 58.
Rb5 {[%clk 0:00:08.7]} 58... Ra4 {[%clk 0:00:41.5]} 59. Kh3 {[%clk 0:00:08.7]}
59... Rc4 {[%clk 0:00:41.1]} 60. Kg3 {[%clk 0:00:08]} 60... Rc2 {[%clk
0:00:40.8]} 61. Kh3 {[%clk 0:00:08.4]} 61... Rc1 {[%clk 0:00:40.3]} 62. Kg3
{[%clk 0:00:09]} 62... Rh1 {[%clk 0:00:40.1]} 63. Kf3 {[%clk 0:00:09.7]} 63...
Rh3+ {[%clk 0:00:39.4]} 64. Kf4 {[%clk 0:00:10]} 64... Ra3 {[%clk 0:00:38.3]}
65. Rc5 {[%clk 0:00:10.5]} 65... g5+ {[%clk 0:00:37.7]} 66. Kf5 {[%clk
0:00:10.8]} 66... Rf3+ {[%clk 0:00:37.3]} 67. Ke5 {[%clk 0:00:09.8]} 67... Rf4
{[%clk 0:00:24.7]} 68. Rc6+ {[%clk 0:00:09.8]} 68... Kh7 {[%clk 0:00:24]} 69.
Rc7+ {[%clk 0:00:10.1]} 69... Kg8 {[%clk 0:00:24.2]} 70. Rc8+ {[%clk 0:00:09.7]}
70... Kf7 {[%clk 0:00:23.8]} 71. Rc7+ {[%clk 0:00:10.2]} 71... Kf8 {[%clk
0:00:23.7]} 72. Rc8+ {[%clk 0:00:10.6]} 72... Ke7 {[%clk 0:00:23.7]} 73. Rc7+
{[%clk 0:00:10]} 73... Ke8 {[%clk 0:00:23.8]} 74. Rc8+ {[%clk 0:00:09.8]} 74...
Kd7 {[%clk 0:00:24.1]} 75. Rg8 {[%clk 0:00:09.9]} 75... Rxg4 {[%clk 0:00:24.2]}
76. Kf5 {[%clk 0:00:10.4]} 76... Rf4+ {[%clk 0:00:23.8]} 77. Kxg5 {[%clk
0:00:10.6]} 1/2-1/2

[Event "Late-Titled-Tuesday-Blitz-May-14-2024"]
[Site "Chess.com"]
[Date "2024.05.14"]
[Round "6"]
[White "Cherepov_Alexej"]
[Black "Dolphin_2010"]
[Result "1/2-1/2"]
[WhiteElo "2410"]
[BlackElo "2612"]
[TimeControl "180+1"]
[EndTime "15:08:03 PDT"]
[Termination "Game drawn - insufficient material"]

1. d4 {[%clk 0:03:00.9]} 1... h5 {[%clk 0:02:57.8]} 2. e4 {[%clk 0:02:59.2]}
2... h4 {[%clk 0:02:57.5]} 3. h3 {[%clk 0:02:57.6]} 3... g6 {[%clk 0:02:56.2]}
4. Nf3 {[%clk 0:02:57]} 4... Bg7 {[%clk 0:02:56.5]} 5. Bc4 {[%clk 0:02:57]} 5...
d6 {[%clk 0:02:56.5]} 6. Nc3 {[%clk 0:02:54.4]} 6... Nd7 {[%clk 0:02:57]} 7.
Bxf7+ {[%clk 0:02:52.4]} 7... Kxf7 {[%clk 0:02:56.4]} 8. Ng5+ {[%clk 0:02:52.5]}
8... Ke8 {[%clk 0:02:52.1]} 9. Ne6 {[%clk 0:02:52.2]} 9... Ndf6 {[%clk
0:02:48.6]} 10. Nxd8 {[%clk 0:02:51.7]} 10... Kxd8 {[%clk 0:02:49.5]} 11. e5
{[%clk 0:02:50.8]} 11... Nd7 {[%clk 0:02:36.9]} 12. O-O {[%clk 0:02:41.8]} 12...
Nh6 {[%clk 0:02:32]} 13. Bg5 {[%clk 0:02:35.6]} 13... Nf5 {[%clk 0:02:29.1]} 14.
Nd5 {[%clk 0:02:29.4]} 14... Nf8 {[%clk 0:02:15.3]} 15. Re1 {[%clk 0:02:13.7]}
15... Be6 {[%clk 0:02:12.1]} 16. exd6 {[%clk 0:02:08.9]} 16... cxd6 {[%clk
0:02:04.3]} 17. Nxe7 {[%clk 0:02:07]} 17... Nxe7 {[%clk 0:02:03.6]} 18. Bxe7+
{[%clk 0:02:05.7]} 18... Kxe7 {[%clk 0:02:03.2]} 19. d5 {[%clk 0:02:06.1]} 19...
Rc8 {[%clk 0:01:59]} 20. Qg4 {[%clk 0:01:50.4]} 20... Be5 {[%clk 0:01:56.2]} 21.
dxe6 {[%clk 0:01:49.6]} 21... Rxc2 {[%clk 0:01:54.9]} 22. Qg5+ {[%clk
0:01:39.2]} 22... Bf6 {[%clk 0:01:48.6]} 23. Qa5 {[%clk 0:01:30.2]} 23... Bd4
{[%clk 0:01:44.6]} 24. Re4 {[%clk 0:01:20]} 24... Bxf2+ {[%clk 0:01:42.1]} 25.
Kh1 {[%clk 0:01:19.3]} 25... Rh5 {[%clk 0:01:33.3]} 26. Qa4 {[%clk 0:01:08.4]}
26... Rhc5 {[%clk 0:01:30.4]} 27. Ree1 {[%clk 0:00:33.6]} 27... Bxe1 {[%clk
0:00:19.5]} 28. Rxe1 {[%clk 0:00:34.5]} 28... Rc1 {[%clk 0:00:19.9]} 29. Rxc1
{[%clk 0:00:31.8]} 29... Rxc1+ {[%clk 0:00:20.8]} 30. Kh2 {[%clk 0:00:32]} 30...
Nxe6 {[%clk 0:00:19.4]} 31. Qxh4+ {[%clk 0:00:30.7]} 31... Kf7 {[%clk
0:00:16.7]} 32. Qf2+ {[%clk 0:00:29.7]} 32... Ke7 {[%clk 0:00:16.8]} 33. Qxa7
{[%clk 0:00:29.2]} 33... Rc7 {[%clk 0:00:17.7]} 34. Qb6 {[%clk 0:00:28.7]} 34...
Rd7 {[%clk 0:00:17.8]} 35. Qe3 {[%clk 0:00:21.4]} 35... d5 {[%clk 0:00:18.7]}
36. a4 {[%clk 0:00:19.3]} 36... d4 {[%clk 0:00:19]} 37. Qd3 {[%clk 0:00:19.1]}
37... Nf4 {[%clk 0:00:19.4]} 38. Qe4+ {[%clk 0:00:18.6]} 38... Ne6 {[%clk
0:00:19.5]} 39. Qd3 {[%clk 0:00:17.5]} 39... Nc5 {[%clk 0:00:18.2]} 40. Qe2+
{[%clk 0:00:16.6]} 40... Kf6 {[%clk 0:00:17.6]} 41. b4 {[%clk 0:00:16.6]} 41...
Ne6 {[%clk 0:00:16.4]} 42. Qd3 {[%clk 0:00:15.6]} 42... Ke5 {[%clk 0:00:16.3]}
43. a5 {[%clk 0:00:14.9]} 43... Nf4 {[%clk 0:00:15.9]} 44. Qb5+ {[%clk
0:00:14.4]} 44... Ke6 {[%clk 0:00:14.1]} 45. Qb6+ {[%clk 0:00:12.8]} 45... Kf7
{[%clk 0:00:13]} 46. Qb5 {[%clk 0:00:11.1]} 46... Ke7 {[%clk 0:00:13]} 47. Qg5+
{[%clk 0:00:10.3]} 47... Ke6 {[%clk 0:00:12.1]} 48. Qxf4 {[%clk 0:00:10.8]}
48... d3 {[%clk 0:00:13]} 49. Qe3+ {[%clk 0:00:10.9]} 49... Kf6 {[%clk 0:00:12]}
50. Qf3+ {[%clk 0:00:10.8]} 50... Ke5 {[%clk 0:00:11.7]} 51. b5 {[%clk
0:00:11.2]} 51... d2 {[%clk 0:00:11.7]} 52. Qe2+ {[%clk 0:00:11.6]} 52... Kf6
{[%clk 0:00:09.9]} 53. Qd1 {[%clk 0:00:11.4]} 53... Rd6 {[%clk 0:00:10.5]} 54.
a6 {[%clk 0:00:11.4]} 54... bxa6 {[%clk 0:00:11.1]} 55. bxa6 {[%clk 0:00:11.9]}
55... Rd7 {[%clk 0:00:11.6]} 56. a7 {[%clk 0:00:11.5]} 56... Rd8 {[%clk
0:00:10.7]} 57. a8=Q {[%clk 0:00:11]} 57... Rxa8 {[%clk 0:00:10.1]} 58. Qxd2
{[%clk 0:00:11.3]} 58... Rf8 {[%clk 0:00:05.6]} 59. Qd6+ {[%clk 0:00:09.8]}
59... Kg7 {[%clk 0:00:06.5]} 60. Qe5+ {[%clk 0:00:09.5]} 60... Rf6 {[%clk
0:00:07.4]} 61. g4 {[%clk 0:00:08.2]} 61... Kf7 {[%clk 0:00:08.3]} 62. Qd5+
{[%clk 0:00:07.6]} 62... Re6 {[%clk 0:00:08.4]} 63. h4 {[%clk 0:00:06.8]} 63...
Kf6 {[%clk 0:00:08.2]} 64. Kg3 {[%clk 0:00:06.8]} 64... Re5 {[%clk 0:00:04.5]}
65. Qd6+ {[%clk 0:00:06.3]} 65... Re6 {[%clk 0:00:04.7]} 66. Qf8+ {[%clk
0:00:05.2]} 66... Ke5 {[%clk 0:00:05.1]} 67. Qg7+ {[%clk 0:00:05.3]} 67... Kd6
{[%clk 0:00:05.1]} 68. h5 {[%clk 0:00:05.5]} 68... gxh5 {[%clk 0:00:05.3]} 69.
gxh5 {[%clk 0:00:05.8]} 69... Re1 {[%clk 0:00:06.1]} 70. h6 {[%clk 0:00:04.5]}
70... Ke6 {[%clk 0:00:06.5]} 71. Qg6+ {[%clk 0:00:03.9]} 71... Ke7 {[%clk
0:00:06.1]} 72. Qg5+ {[%clk 0:00:03.9]} 72... Ke6 {[%clk 0:00:05.8]} 73. Kg4
{[%clk 0:00:02.9]} 73... Rg1+ {[%clk 0:00:06.1]} 74. Kh5 {[%clk 0:00:02.9]}
74... Rxg5+ {[%clk 0:00:07]} 75. Kxg5 {[%clk 0:00:03.5]} 75... Kf7 {[%clk
0:00:07.8]} 76. Kh5 {[%clk 0:00:03.8]} 76... Kf6 {[%clk 0:00:07.4]} 77. h7
{[%clk 0:00:03.8]} 77... Kg7 {[%clk 0:00:08.3]} 78. h8=Q+ {[%clk 0:00:03.6]}
78... Kxh8 {[%clk 0:00:09.2]} 1/2-1/2

[Event "Late-Titled-Tuesday-Blitz-May-14-2024"]
[Site "Chess.com"]
[Date "2024.05.14"]
[Round "6"]
[White "zverr1"]
[Black "jcmesafischer"]
[Result "0-1"]
[WhiteElo "2448"]
[BlackElo "2311"]
[TimeControl "180+1"]
[EndTime "15:08:08 PDT"]
[Termination "jcmesafischer won by checkmate"]

1. d4 {[%clk 0:03:00.9]} 1... Nf6 {[%clk 0:02:59.7]} 2. c4 {[%clk 0:03:01.3]}
2... e6 {[%clk 0:02:59.8]} 3. Nf3 {[%clk 0:03:01.7]} 3... Bb4+ {[%clk
0:02:59.5]} 4. Bd2 {[%clk 0:03:01.6]} 4... Be7 {[%clk 0:02:59.4]} 5. g3 {[%clk
0:03:01.1]} 5... d5 {[%clk 0:02:59.8]} 6. Bg2 {[%clk 0:03:01.7]} 6... O-O {[%clk
0:03:00.3]} 7. O-O {[%clk 0:03:02.6]} 7... dxc4 {[%clk 0:03:00]} 8. Qc1 {[%clk
0:02:51.2]} 8... a6 {[%clk 0:02:54.2]} 9. Qxc4 {[%clk 0:02:38.7]} 9... b5 {[%clk
0:02:53.4]} 10. Qc2 {[%clk 0:02:39]} 10... Bb7 {[%clk 0:02:53]} 11. Rc1 {[%clk
0:02:31]} 11... Bd6 {[%clk 0:02:50.9]} 12. Bg5 {[%clk 0:02:27.5]} 12... Nbd7
{[%clk 0:02:42.8]} 13. Nbd2 {[%clk 0:02:23.2]} 13... c5 {[%clk 0:02:28.1]} 14.
Bxf6 {[%clk 0:02:11.4]} 14... Qxf6 {[%clk 0:02:15.1]} 15. Ng5 {[%clk 0:02:06.9]}
15... Qxg5 {[%clk 0:02:11.9]} 16. Bxb7 {[%clk 0:02:06.9]} 16... Ra7 {[%clk
0:02:04.8]} 17. Ne4 {[%clk 0:02:03.6]} 17... Qe7 {[%clk 0:02:03.7]} 18. Nxd6
{[%clk 0:01:53.5]} 18... Qxd6 {[%clk 0:02:04.6]} 19. Be4 {[%clk 0:01:54]} 19...
Qxd4 {[%clk 0:01:49.1]} 20. Bxh7+ {[%clk 0:01:48.1]} 20... Kh8 {[%clk 0:01:49]}
21. Be4 {[%clk 0:01:48.5]} 21... Nf6 {[%clk 0:01:41]} 22. Bf3 {[%clk 0:01:47.7]}
22... c4 {[%clk 0:01:39.5]} 23. Rd1 {[%clk 0:01:46.5]} 23... Qe5 {[%clk
0:01:38.7]} 24. a4 {[%clk 0:01:42.9]} 24... Rc7 {[%clk 0:01:31.9]} 25. axb5
{[%clk 0:01:42.1]} 25... axb5 {[%clk 0:01:32.7]} 26. Ra5 {[%clk 0:01:39.4]}
26... g6 {[%clk 0:01:30.4]} 27. Qc3 {[%clk 0:01:37.6]} 27... Qxc3 {[%clk
0:01:26.9]} 28. bxc3 {[%clk 0:01:38.4]} 28... Rb8 {[%clk 0:01:25.8]} 29. Rb1
{[%clk 0:01:34.9]} 29... Rc5 {[%clk 0:01:25.7]} 30. Ra7 {[%clk 0:01:32.8]} 30...
Kg7 {[%clk 0:01:24.2]} 31. Ra2 {[%clk 0:01:05.4]} 31... e5 {[%clk 0:01:10.4]}
32. e3 {[%clk 0:00:56.6]} 32... e4 {[%clk 0:01:09.5]} 33. Bg2 {[%clk 0:00:55.2]}
33... Nd5 {[%clk 0:01:09.3]} 34. Rc2 {[%clk 0:00:54.3]} 34... f5 {[%clk
0:01:08.5]} 35. Bf1 {[%clk 0:00:52.8]} 35... Ra8 {[%clk 0:01:04.6]} 36. Rd1
{[%clk 0:00:44.4]} 36... Kf6 {[%clk 0:01:03.9]} 37. Re1 {[%clk 0:00:32.6]} 37...
Ra3 {[%clk 0:01:02.5]} 38. Rec1 {[%clk 0:00:32.3]} 38... Rc7 {[%clk 0:01:01]}
39. h4 {[%clk 0:00:32.7]} 39... Rca7 {[%clk 0:01:01]} 40. Be2 {[%clk 0:00:27.8]}
40... Ra2 {[%clk 0:01:01]} 41. h5 {[%clk 0:00:25]} 41... gxh5 {[%clk 0:00:57.5]}
42. Bxh5 {[%clk 0:00:24.3]} 42... Rxc2 {[%clk 0:00:58.1]} 43. Rxc2 {[%clk
0:00:25.2]} 43... Ra3 {[%clk 0:00:58.6]} 44. Rd2 {[%clk 0:00:24.7]} 44... Ke5
{[%clk 0:00:56]} 45. Be8 {[%clk 0:00:20.6]} 45... Nxc3 {[%clk 0:00:54.5]} 46.
Rd7 {[%clk 0:00:20.4]} 46... b4 {[%clk 0:00:52.6]} 47. Rc7 {[%clk 0:00:19.7]}
47... b3 {[%clk 0:00:41.1]} 48. Rb7 {[%clk 0:00:05.8]} 48... Nd1 {[%clk
0:00:29.1]} 49. Bf7 {[%clk 0:00:04.8]} 49... b2 {[%clk 0:00:14.9]} 50. Rb6
{[%clk 0:00:04.7]} 50... f4 {[%clk 0:00:09]} 51. exf4+ {[%clk 0:00:02]} 51...
Kf5 {[%clk 0:00:08.3]} 52. Bxc4 {[%clk 0:00:02.9]} 52... Ra1 {[%clk 0:00:07.5]}
53. Be6+ {[%clk 0:00:01.1]} 53... Kf6 {[%clk 0:00:06]} 54. Bd5+ {[%clk
0:00:01.8]} 54... Ke7 {[%clk 0:00:05.5]} 55. Bxe4 {[%clk 0:00:02.1]} 55... Nc3+
{[%clk 0:00:05.6]} 56. Bb1 {[%clk 0:00:03]} 56... Rxb1+ {[%clk 0:00:04.9]} 57.
Kg2 {[%clk 0:00:03.9]} 57... Na4 {[%clk 0:00:02.5]} 58. Rb4 {[%clk 0:00:03.7]}
58... Ra1 {[%clk 0:00:03]} 59. Kf3 {[%clk 0:00:04.1]} 59... b1=Q {[%clk
0:00:03.4]} 60. Rxb1 {[%clk 0:00:05]} 60... Rxb1 {[%clk 0:00:04.2]} 61. g4
{[%clk 0:00:05.8]} 61... Rb4 {[%clk 0:00:04.8]} 62. g5 {[%clk 0:00:05.8]} 62...
Rb3+ {[%clk 0:00:05.7]} 63. Kg4 {[%clk 0:00:06.7]} 63... Nc5 {[%clk 0:00:06.6]}
64. Kf5 {[%clk 0:00:07.2]} 64... Ne6 {[%clk 0:00:07.2]} 65. Ke5 {[%clk
0:00:07.3]} 65... Rb5+ {[%clk 0:00:07.8]} 66. Ke4 {[%clk 0:00:07.5]} 66... Rb4+
{[%clk 0:00:08.5]} 67. Ke5 {[%clk 0:00:08.1]} 67... Rxf4 {[%clk 0:00:09.1]} 68.
g6 {[%clk 0:00:08.7]} 68... Rg4 {[%clk 0:00:09.6]} 69. g7 {[%clk 0:00:09.2]}
69... Rxg7 {[%clk 0:00:09.9]} 70. f4 {[%clk 0:00:10.1]} 70... Rf7 {[%clk
0:00:10.4]} 71. f5 {[%clk 0:00:10.6]} 71... Ng7 {[%clk 0:00:10.9]} 72. f6+
{[%clk 0:00:10.9]} 72... Rxf6 {[%clk 0:00:11.8]} 73. Kd5 {[%clk 0:00:11.7]}
73... Re6 {[%clk 0:00:12.1]} 74. Kd4 {[%clk 0:00:12.1]} 74... Nf5+ {[%clk
0:00:11.8]} 75. Kd5 {[%clk 0:00:13]} 75... Kd7 {[%clk 0:00:11.7]} 76. Kc5 {[%clk
0:00:13.9]} 76... Rd6 {[%clk 0:00:12.1]} 77. Kc4 {[%clk 0:00:14.8]} 77... Ne7
{[%clk 0:00:11.9]} 78. Kc5 {[%clk 0:00:15.7]} 78... Rd5+ {[%clk 0:00:12.5]} 79.
Kc4 {[%clk 0:00:16.1]} 79... Kd6 {[%clk 0:00:12.8]} 80. Kc3 {[%clk 0:00:16.5]}
80... Nc6 {[%clk 0:00:13.4]} 81. Kc4 {[%clk 0:00:17.4]} 81... Rc5+ {[%clk
0:00:13.6]} 82. Kd3 {[%clk 0:00:17.8]} 82... Kd5 {[%clk 0:00:14.1]} 83. Ke3
{[%clk 0:00:18.4]} 83... Rc4 {[%clk 0:00:14.8]} 84. Kd3 {[%clk 0:00:19.3]} 84...
Ne5+ {[%clk 0:00:14.9]} 85. Ke3 {[%clk 0:00:20.2]} 85... Re4+ {[%clk 0:00:15.3]}
86. Kf2 {[%clk 0:00:20.4]} 86... Kd4 {[%clk 0:00:16.2]} 87. Kg3 {[%clk
0:00:21.3]} 87... Rg4+ {[%clk 0:00:15.9]} 88. Kf2 {[%clk 0:00:21.5]} 88... Ke4
{[%clk 0:00:16.5]} 89. Ke2 {[%clk 0:00:22.4]} 89... Rg2+ {[%clk 0:00:16.9]} 90.
Kf1 {[%clk 0:00:22.2]} 90... Kf3 {[%clk 0:00:16.7]} 91. Ke1 {[%clk 0:00:22.8]}
91... Ng4 {[%clk 0:00:17.2]} 92. Kf1 {[%clk 0:00:23.7]} 92... Ne3+ {[%clk
0:00:16.6]} 93. Ke1 {[%clk 0:00:24.6]} 93... Re2# {[%clk 0:00:17.1]} 0-1